lending/lending_fUSD_20250409
["ID","MTS","AMOUNT","RATE_DAILY","PERIOD"]
[357593028,1744215044469,-178.477561,0.00027856,7]
[357593029,1744215044479,-151.0,0.00027856,7]
[357593030,1744215044489,-74.18731133,0.00027856,7]
[357593031,1744215045028,-1110.144839,0.0002615,7]
[357593032,1744215045038,-1110.144839,0.00026479,7]
[357593033,1744215045047,-1110.144839,0.00027387,7]
[357593034,1744215045057,-1110.144839,0.00027846,7]
[357593035,1744215045066,-105.97756467,0.00027856,7]
[357593036,1744215045075,-180.164876,0.00027856,7]
[357593037,1744215045084,-151.0,0.00027856,7]
[357593038,1744215045093,-151.0,0.00027856,7]
[357593039,1744215045102,-151.0,0.00027856,7]
[357593040,1744215045111,-151.0,0.00027856,7]
[357593041,1744215045121,-151.0,0.00027856,7]
[357593042,1744215045130,-2313.66666029,0.00027991,2]
[357593043,1744215045139,-1371.28028198,0.00028065,2]
[357593044,1744215045149,-205.142075,0.00028186,7]
[357593045,1744215045158,-205.142075,0.00028186,7]
[357593046,1744215045167,-151.0,0.00028186,7]
[357593047,1744215045177,-248.0111,0.00028186,7]
[357593048,1744215045186,-248.0111,0.00028186,7]
[357593049,1744215045195,-151.0,0.00028186,7]
[357593050,1744215045204,-742.308557,0.00028186,7]
[357593051,1744215045213,-742.308557,0.00028186,7]
[357593052,1744215045222,-151.0,0.00028186,7]
[357593053,1744215045231,-14905.3689803,0.00028186,3]
[357593054,1744215045240,-151.0,0.00028196,7]
[357593055,1744215045249,-280.948869,0.00028196,7]
[357593056,1744215045259,-189.276561,0.00028196,7]
[357593057,1744215045268,-151.0,0.00028196,7]
[357593058,1744215045278,-151.0,0.00028196,7]
[357593059,1744215045287,-848.635718,0.00028196,7]
[357593060,1744215045296,-848.635718,0.00028196,7]
[357593061,1744215045305,-151.0,0.00028196,7]
[357593062,1744215045314,-151.0,0.00028196,7]
[357593063,1744215045323,-151.0,0.00028196,7]
[357593064,1744215045332,-151.0,0.00028196,7]
[357593065,1744215045342,-151.0,0.00028196,7]
[357593066,1744215045351,-204.875908,0.00028196,7]
[357593067,1744215045359,-204.875908,0.00028196,7]
[357593068,1744215045369,-211.8189,0.00028196,7]
[357593069,1744215045378,-151.0,0.00028196,7]
[357593070,1744215045387,-151.0,0.00028196,7]
[357593071,1744215045396,-151.0,0.00028196,7]
[357593072,1744215045406,-231.267171,0.00028196,7]
[357593073,1744215045415,-354.724621,0.00028196,7]
[357593074,1744215045424,-205.23304,0.00028196,7]
[357593075,1744215045433,-354.724621,0.00028196,7]
[357593076,1744215045442,-205.23304,0.00028196,7]
[357593077,1744215045451,-157.168463,0.00028196,7]
[357593078,1744215045460,-180.164876,0.00028196,7]
[357593079,1744215045470,-180.164876,0.00028196,7]
[357593080,1744215045479,-280.829002,0.00028196,7]
[357593081,1744215045488,-151.0,0.00028196,7]
[357593082,1744215045497,-282.489715,0.00028196,7]
[357593083,1744215045507,-1110.144839,0.00028196,7]
[357593084,1744215045516,-1110.144839,0.00028196,7]
[357593085,1744215045526,-151.0,0.00028202,7]
[357593086,1744215045536,-151.0,0.00028202,7]
[357593087,1744215045545,-151.157601,0.00028202,7]
[357593088,1744215045554,-151.157601,0.00028202,7]
[357593089,1744215045564,-205.142075,0.00028206,7]
[357593090,1744215045573,-205.142075,0.00028206,7]
[357593091,1744215045582,-151.0,0.00028206,7]
[357593092,1744215045591,-248.0111,0.00028206,7]
[357593093,1744215045600,-248.0111,0.00028206,7]
[357593094,1744215045610,-151.0,0.00028206,7]
[357593095,1744215045624,-152.309366,0.00028206,7]
[357593096,1744215045633,-377.749452,0.00028206,7]
[357593097,1744215045642,-377.749452,0.00028206,7]
[357593098,1744215045651,-151.0,0.00028206,7]
[357593099,1744215045662,-151.0,0.00028206,7]
[357593100,1744215045671,-151.0,0.00028206,7]
[357593101,1744215045680,-190.899449,0.00028206,7]
[357593102,1744215045689,-1493.62,0.00028289,2]
[357593103,1744215045699,-169.55,0.00028291,2]
[357593104,1744215045709,-500.0,0.00028722,5]
[357593105,1744215045718,-290.0,0.00028767,2]
[357593106,1744215045727,-1365.86,0.00028767,2]
[357593107,1744215045737,-166.66,0.00028863,2]
[357593108,1744215045747,-500.0,0.00029,2]
[357593109,1744215045756,-151.0,0.00029485,7]
[357593110,1744215045765,-151.0,0.00029485,7]
[357593111,1744215045775,-151.0,0.00029485,7]
[357593112,1744215045784,-151.0,0.00029485,7]
[357593113,1744215045794,-151.0,0.00029485,7]
[357593114,1744215045803,-1000.0,0.00029543,2]
[357593115,1744215045812,-169.55,0.00029577,2]
[357593116,1744215045822,-200.06797136,0.00029717,5]
[357593117,1744215045831,-500.0,0.00029717,5]
[357593118,1744215045840,-3958.0,0.00029799,2]
[357593119,1744215045850,-151.0,0.00029799,2]
[357593120,1744215045859,-852.0,0.00029799,2]
[357593121,1744215045869,-226.029,0.00029799,2]
[357593122,1744215045879,-166.66,0.00029816,2]
[357593123,1744215045888,-200.0,0.000299,10]
[357593124,1744215045897,-151.0,0.0002998,7]
[357593125,1744215045906,-205.142075,0.0002999,7]
[357593126,1744215045916,-205.142075,0.0002999,7]
[357593127,1744215045926,-151.0,0.0002999,7]
[357593128,1744215045935,-248.0111,0.0002999,7]
[357593129,1744215045944,-248.0111,0.0002999,7]
[357593130,1744215045953,-762.82676308,0.0003,14]
[357593131,1744215045963,-1371.28028198,0.00030082,2]
[357593132,1744215045972,-1365.86,0.00030137,2]
[357593133,1744215045980,-151.0,0.00030137,7]
[357593134,1744215045989,-151.0,0.00030137,7]
[357593135,1744215045999,-151.0,0.00030137,7]
[357593136,1744215046008,-742.308557,0.00030137,7]
[357593137,1744215046017,-742.308557,0.00030137,7]
[357593138,1744215046026,-151.0,0.00030137,7]
[357593139,1744215046036,-297.0,0.00030205,2]
[357593140,1744215046045,-1174.08985292,0.00030307,2]
[357593141,1744215046055,-8699.68163895,0.00030377,3]
[357593142,1744215046738,-178.87278492,0.0002606,2]
[357593143,1744215046748,-6205.68734135,0.00030377,3]
[357593144,1744215046758,-1110.144839,0.00030377,7]
[357593145,1744215046767,-1110.144839,0.00030377,7]
[357593146,1744215046778,-609.13,0.00030377,2]
[357593147,1744215046790,-9129.00977537,0.00030387,3]
[357593148,1744215046802,-151.0,0.00030387,7]
[357593149,1744215046812,-258.155521,0.00030387,7]
[357593150,1744215046823,-151.0,0.00030387,7]
[357593151,1744215046836,-221.589049,0.00030387,7]
[357593152,1744215046849,-204.875908,0.00030387,7]
[357593153,1744215046860,-204.875908,0.00030387,7]
[357593154,1744215046869,-283.631614,0.00030387,7]
[357593155,1744215046878,-151.0,0.00030387,7]
[357593156,1744215046888,-151.0,0.00030387,7]
[357593157,1744215046898,-354.724621,0.00030387,7]
[357593158,1744215046907,-205.23304,0.00030387,7]
[357593159,1744215046917,-354.724621,0.00030387,7]
[357593160,1744215046927,-205.23304,0.00030387,7]
[357593161,1744215046936,-180.164876,0.00030387,7]
[357593162,1744215046945,-180.164876,0.00030387,7]
[357593163,1744215046955,-151.0,0.00030387,7]
[357593164,1744215046965,-1110.144839,0.00030387,7]
[357593165,1744215046974,-1110.144839,0.00030387,7]
[357593166,1744215046983,-14905.3689803,0.00030387,3]
[357593167,1744215046993,-18258.0195507,0.00030387,3]
[357593168,1744215047003,-14905.3689803,0.00030397,3]
[357593169,1744215047013,-9129.00977537,0.00030397,3]
[357593170,1744215047022,-155.389418,0.00030397,7]
[357593171,1744215047033,-151.0,0.00030397,7]
[357593172,1744215047042,-151.0,0.00030397,7]
[357593173,1744215047052,-151.0,0.00030397,7]
[357593174,1744215047061,-151.0,0.00030397,7]
[357593175,1744215047071,-151.0,0.00030397,7]
[357593176,1744215047080,-151.0,0.00030397,7]
[357593177,1744215047089,-151.157601,0.00030397,7]
[357593178,1744215047099,-151.157601,0.00030397,7]
[357593179,1744215047109,-151.0,0.00030397,7]
[357593180,1744215047118,-151.0,0.00030397,7]
[357593181,1744215047128,-151.0,0.00030397,7]
[357593182,1744215047138,-848.635718,0.00030397,7]
[357593183,1744215047147,-848.635718,0.00030397,7]
[357593184,1744215047157,-151.0,0.00030397,7]
[357593185,1744215047166,-151.0,0.00030397,7]
[357593186,1744215047176,-174.911139,0.00030397,7]
[357593187,1744215047185,-377.749452,0.00030397,7]
[357593188,1744215047195,-377.749452,0.00030397,7]
[357593189,1744215047204,-151.0,0.00030397,7]
[357593190,1744215047214,-151.0,0.00030397,7]
[357593191,1744215047454,-742.308557,0.00030397,7]
[357593192,1744215047464,-742.308557,0.00030397,7]
[357593193,1744215047474,-151.0,0.00030397,7]
[357593194,1744215047484,-151.0,0.00030397,7]
[357593195,1744215047493,-151.0,0.00030397,7]
[357593196,1744215047503,-1110.144839,0.00030397,7]
[357593197,1744215047512,-1110.144847,0.00030397,7]
[357593198,1744215047522,-1584.43548269,0.00030397,3]
[357593199,1744215047626,-8913.89984662,0.00030397,3]
[357593222,1744215057374,4000.0,0.00032,120]
[357593224,1744215095425,10000.0,0.00032,120]
[357593274,1744215938468,319.3148655,8e-05,2]
[357593277,1744216029100,-167.524954,0.00019899,2]
[357593278,1744216029122,-300.0,0.00019998,2]
[357593279,1744216029144,-500.0,0.00019999,2]
[357593280,1744216029167,-500.0,0.00019999,2]
[357593281,1744216029190,-500.0,0.00019999,2]
[357593282,1744216029211,-500.0,0.00019999,2]
[357593283,1744216029232,-500.0,0.00019999,2]
[357593284,1744216029253,-500.0,0.00019999,2]
[357593285,1744216029281,-34.80432844,0.00019999,2]
[357593287,1744216083178,18680.6851345,0.00015,2]
[357593292,1744216147141,-300.0,0.00014999,2]
[357593293,1744216147165,-15245.76930041,0.00015,2]
[357593294,1744216147188,-667.989999,0.000151,2]
[357593295,1744216147211,-396.0,0.00016416,2]
[357593301,1744216156105,-213.26383797,0.000181,2]
[357593302,1744216156126,-343.40109571,0.0001901,7]
[357593303,1744216156148,-178.87278491,0.000199,2]
[357593304,1744216156169,-697.06867602,0.000199,2]
[357593305,1744216156189,-697.06867601,0.000199,2]
[357593306,1744216156210,-467.13396689,0.00019999,2]
[357593307,1744216156232,-500.0,0.00019999,2]
[357593308,1744216156252,-500.0,0.00019999,2]
[357593309,1744216156273,-500.0,0.00019999,2]
[357593310,1744216156293,-500.0,0.00019999,2]
[357593311,1744216156313,-300.0,0.00019999,2]
[357593312,1744216156342,-50184.24972249,0.0002,2]
[357593336,1744216231882,-28074.92304979,0.0002,2]
[357593339,1744216231937,-1050.0,0.0002,2]
[357593340,1744216231996,-1577.36276331,0.0002,2]
[357593341,1744216232111,-939.489561,0.0002,2]
[357593457,1744216238674,-2000.0,0.0002,2]
[357593459,1744216238686,-6480.94971442,0.0002,2]
[357593460,1744216238697,-1782.044,0.0002,2]
[357593461,1744216238709,-500.0,0.0002,2]
[357593462,1744216238724,-515.55170183,0.0002,2]
[357593465,1744216239676,-180.11088784,0.0002,2]
[357593466,1744216240189,-9160.70058075,0.0002,2]
[357593467,1744216240246,-336.66,0.0002,2]
[357593468,1744216240257,-7818.75600002,0.0002,2]
[357593494,1744216243915,-105.34072752,0.0002,2]
[357593495,1744216243928,-361678.97620448,0.0002,2]
[357593496,1744216243937,-10343.56216848,0.0002,2]
[357593497,1744216243947,-42836.54229956,0.0002,4]
[357593498,1744216243956,-4464.622848,0.00021,2]
[357593499,1744216243966,-451.05820965,0.00023916,2]
[357593500,1744216243975,-5000.0,0.00024,5]
[357593501,1744216243984,-500.0,0.00024658,2]
[357593502,1744216243995,-500.0,0.00024658,2]
[357593503,1744216244006,-500.0,0.00024658,2]
[357593504,1744216244015,-600.0,0.00024658,2]
[357593505,1744216244025,-500.0,0.00024658,2]
[357593506,1744216244035,-500.0,0.00024658,2]
[357593507,1744216244044,-500.0,0.00024658,2]
[357593508,1744216244053,-500.0,0.00024658,2]
[357593509,1744216244063,-500.0,0.00024658,2]
[357593510,1744216244072,-500.0,0.00024658,2]
[357593511,1744216244083,-261.35680673,0.00024658,2]
[357593512,1744216244092,-500.0,0.00024658,2]
[357593513,1744216244101,-500.0,0.00024658,2]
[357593514,1744216244111,-151.42,0.0002479,2]
[357593515,1744216244120,-112905.239229,0.000248,3]
[357593516,1744216244130,-3725.3625171,0.00025,2]
[357593517,1744216244139,-161.08225906,0.00025,2]
[357593518,1744216244148,-3253.61173007,0.000251,2]
[357593519,1744216244158,-1840.23,0.00025233,2]
[357593520,1744216244169,-1461.92991026,0.00026649,10]
[357593521,1744216244179,-1397.50736011,0.00026749,2]
[357593522,1744216244188,-1352.12,0.00026749,10]
[357593523,1744216244198,-234.75,0.00026849,2]
[357593524,1744216244207,-200.0,0.00026889,2]
[357593525,1744216244217,-200.0,0.00026914,7]
[357593526,1744216244226,-1000.0,0.00027024,2]
[357593527,1744216244235,-2067.02,0.00027132,2]
[357593528,1744216244245,-300.0,0.0002716,2]
[357593529,1744216244254,-14113.1549036,0.00027387,3]
[357593530,1744216244264,-500.0,0.00027397,2]
[357593531,1744216244275,-500.0,0.00027397,2]
[357593532,1744216244285,-500.0,0.00027397,2]
[357593533,1744216244294,-500.0,0.00027397,2]
[357593534,1744216244304,-500.0,0.00027397,2]
[357593535,1744216244314,-500.0,0.00027397,2]
[357593536,1744216244323,-500.0,0.00027397,2]
[357593537,1744216244333,-500.0,0.00027397,2]
[357593538,1744216244342,-500.0,0.00027397,2]
[357593539,1744216244352,-500.0,0.00027397,2]
[357593540,1744216244361,-398.3381658,0.00027397,2]
[357593541,1744216244371,-500.0,0.00027397,2]
[357593542,1744216244380,-1840.23,0.00027497,2]
[357593543,1744216244390,-500.0,0.0002752,5]
[357593544,1744216244400,-500.0,0.0002752,5]
[357593545,1744216244410,-1376.385,0.00027838,2]
[357593546,1744216244421,-791.0,0.00027838,2]
[357593547,1744216244430,-907.0,0.00027838,2]
[357593548,1744216244440,-1278.0,0.00027838,2]
[357593549,1744216244449,-1436.0,0.00027838,2]
[357593550,1744216244458,-544.0,0.00027838,2]
[357593551,1744216244468,-4143.0,0.00027838,2]
[357593552,1744216244478,-151.0,0.00027838,2]
[357593553,1744216244487,-1286.0,0.00027838,2]
[357593554,1744216244496,-3958.0,0.00027838,2]
[357593555,1744216244506,-574.0,0.00027838,2]
[357593556,1744216244515,-2044.0,0.00027838,2]
[357593557,1744216244524,-181.41,0.00027947,2]
[357593558,1744216244534,-500.0,0.0002826,5]
[357593559,1744216244543,-186.43061969,0.0002826,5]
[357593560,1744216244553,-500.0,0.00028349,2]
[357593561,1744216244563,-782.72656862,0.00028394,2]
[357593562,1744216244572,-151.0,0.00028467,7]
[357593563,1744216244582,-151.0,0.00028467,7]
[357593564,1744216244591,-151.0,0.00028467,7]
[357593565,1744216244601,-151.0,0.00028467,7]
[357593566,1744216244610,-14113.1549036,0.00028468,3]
[357593567,1744216244619,-8921.53228048,0.00028468,3]
[357593568,1744216244629,-30734.08,0.00028477,2]
[357593569,1744216244638,-170.25,0.00028494,2]
[357593570,1744216244648,-170.25,0.0002853,2]
[357593571,1744216244658,-1397.50736004,0.00028544,2]
[357593572,1744216244668,-14113.1549036,0.00028555,3]
[357593573,1744216244677,-170.25,0.00028565,2]
[357593574,1744216244686,-250.0,0.00028569,2]
[357593575,1744216244696,-789.33,0.00028578,2]
[357593576,1744216244705,-1852.42,0.00028582,2]
[357593577,1744216244715,-151.0,0.00028582,7]
[357593578,1744216244725,-250.0,0.000286,2]
[357593579,1744216244734,-170.25,0.00028601,2]
[357593580,1744216244744,-170.25,0.00028637,2]
[357593581,1744216244755,-250.0,0.00028686,2]
[357593582,1744216244764,-316.02,0.00028727,2]
[357593583,1744216244774,-14113.1549036,0.0002882,3]
[357593584,1744216244783,-5232.32885568,0.0002882,3]
[357593586,1744216245944,-777.32154,0.0002882,3]
[357593587,1744216246208,-11833.41416532,0.0002882,3]
[357593588,1744216246218,-151.0,0.00028821,7]
[357593589,1744216246228,-151.0,0.00028821,7]
[357593590,1744216246237,-151.0,0.00028821,7]
[357593591,1744216246247,-300.0,0.00028829,10]
[357593592,1744216246256,-500.0,0.00028829,2]
[357593593,1744216246266,-500.0,0.00028829,2]
[357593594,1744216246275,-500.0,0.00028829,2]
[357593595,1744216246285,-500.0,0.00028829,2]
[357593596,1744216246294,-500.0,0.00028829,2]
[357593597,1744216246305,-151.0,0.0002883,7]
[357593598,1744216246314,-151.0,0.0002883,7]
[357593599,1744216246324,-151.0,0.0002883,7]
[357593600,1744216246333,-151.0,0.0002883,7]
[357593601,1744216246343,-23900.0,0.0002883,2]
[357593602,1744216246353,-555.65,0.0002883,2]
[357593603,1744216246364,-200.0,0.0002883,2]
[357593604,1744216246374,-16440.0,0.0002883,2]
[357593605,1744216246384,-782.72656861,0.0002933,2]
[357593606,1744216246393,-335.58991963,0.00029614,2]
[357593607,1744216246402,-1840.23,0.00029761,2]
[357593608,1744216246411,-1946.42,0.000298,2]
[357593609,1744216246421,-1946.42,0.000298,2]
[357593610,1744216246430,-1946.42,0.000298,2]
[357593611,1744216246440,-1946.42,0.000298,2]
[357593612,1744216246449,-1946.42,0.000298,2]
[357593613,1744216246459,-1946.42,0.000298,2]
[357593614,1744216246468,-1946.42,0.000298,2]
[357593615,1744216246478,-1946.42,0.000298,2]
[357593616,1744216246487,-1946.42,0.000298,2]
[357593617,1744216246496,-1946.42,0.000298,2]
[357593619,1744216246505,-1946.42,0.000298,2]
[357593621,1744216246515,-1946.42,0.000298,2]
[357593622,1744216246524,-1946.42,0.000298,2]
[357593623,1744216246534,-1946.42,0.000298,2]
[357593624,1744216246543,-1946.42,0.000298,2]
[357593625,1744216246552,-1946.42,0.000298,2]
[357593626,1744216246561,-1946.42,0.000298,2]
[357593627,1744216246571,-1946.42,0.000298,2]
[357593628,1744216246580,-1946.42,0.000298,2]
[357593629,1744216246589,-1946.53774612,0.000298,2]
[357593630,1744216246599,-8921.53228048,0.00029889,3]
[357593631,1744216246608,-257.69,0.00029897,2]
[357593632,1744216246617,-1461.92991022,0.00029899,20]
[357593633,1744216246627,-600.0,0.000299,10]
[357593634,1744216246637,-151.42,0.0002998,2]
[357593635,1744216246647,-500.0,0.00029989,2]
[357593636,1744216246658,-56452.6196144,0.0002999,3]
[357593637,1744216246676,-44607.6614024,0.0002999,3]
[357593638,1744216246687,-151.0,0.0002999,7]
[357593639,1744216246701,-151.0,0.0002999,7]
[357593640,1744216246712,-151.0,0.0002999,7]
[357593641,1744216246722,-500.0,0.00029999,2]
[357593642,1744216246731,-500.0,0.00029999,2]
[357593643,1744216246740,-500.0,0.00029999,2]
[357593644,1744216246750,-500.0,0.00029999,2]
[357593645,1744216246770,-500.0,0.00029999,2]
[357593646,1744216246780,-165.0,0.0003,2]
[357593647,1744216246789,-12829.0,0.0003,4]
[357593648,1744216246799,-86407.54488227,0.0003,2]
[357593649,1744216248273,-377.2182405,0.000325,31]
[357593675,1744216838149,150.0,0.00027,120]
[357593719,1744217362136,-250.0,0.00019,2]
[357593720,1744217362157,-300.0,0.00021,2]
[357593723,1744217422221,1301.25,0.0002,2]
[357593724,1744217422534,1301.25,0.0002,2]
[357593725,1744217422860,1301.25,0.0002,2]
[357593726,1744217423175,10.89186,0.0002,2]
[357593732,1744217432161,-1290.35814,0.0002,2]
[357593733,1744217432170,-1301.25,0.0002,2]
[357593734,1744217432179,-1301.25,0.0002,2]
[357593735,1744217432188,-1301.25,0.0002,2]
[357593736,1744217432197,-1301.25,0.0002,2]
[357593737,1744217432206,-1301.25,0.0002,2]
[357593738,1744217432214,-12.49184299,0.0002,2]
[357593739,1744217432225,-1288.75815701,0.0002,2]
[357593740,1744217432234,-1301.25,0.0002,2]
[357593741,1744217432242,-1301.25,0.0002,2]
[357593742,1744217432251,-1301.25,0.0002,2]
[357593743,1744217432260,-41.62102809,0.0002,2]
[357593744,1744217432273,-510.8963481,0.0002,2]
[357593745,1744217432284,-748.73262381,0.0002,2]
[357593746,1744217432293,-1301.25,0.0002,2]
[357593747,1744217432303,-1301.25,0.0002,2]
[357593748,1744217432312,-1301.25,0.0002,2]
[357593774,1744217432538,-1301.25,0.0002,2]
[357593777,1744217432566,-1301.28742909,0.0002,2]
[357593779,1744217432575,-350.0,0.00023,2]
[357593781,1744217432584,-400.0,0.00025,2]
[357593783,1744217432593,-250.0,0.00025397,2]
[357593785,1744217432602,-217.99380183,0.000259,2]
[357593787,1744217432611,-158.14756455,0.00025942,2]
[357593789,1744217432620,-1705.94,0.00026042,2]
[357593791,1744217432629,-297.0,0.000263,5]
[357593793,1744217432638,-297.49,0.00026849,2]
[357593795,1744217432647,-352.753765,0.00026864,2]
[357593797,1744217432656,-500.0,0.00026999,2]
[357593799,1744217432665,-450.0,0.00027,2]
[357593801,1744217432674,-1033.51,0.00027995,2]
[357593803,1744217432683,-166.2,0.00028002,2]
[357593805,1744217432692,-200.0,0.00028015,7]
[357593807,1744217432702,-1208.96338063,0.00028263,2]
[357593811,1744217432736,-415.87469936,0.00028263,2]
[357593875,1744217438054,150.0,0.00027,120]
[357593876,1744217438233,-375.16192001,0.00028263,2]
[357593877,1744217438243,-300.0,0.00028305,2]
[357593878,1744217438253,-824.63807999,0.00028306,2]
[357593879,1744217438349,-777.92,0.00028306,2]
[357593881,1744217438651,-3.5395425,0.00028306,2]
[357593904,1744217440324,-99.84237751,0.00028306,2]
[357593905,1744217440334,-13789.47474438,0.00028324,2]
[357593906,1744217440343,-184.85,0.00028546,2]
[357593907,1744217440353,-636.13,0.00028631,2]
[357593908,1744217440363,-636.13,0.00028639,2]
[357593909,1744217440373,-636.13,0.00028646,2]
[357593910,1744217440382,-636.13,0.00028654,2]
[357593911,1744217440393,-636.13,0.00028661,2]
[357593912,1744217440406,-636.13,0.00028669,2]
[357593913,1744217440416,-951.0,0.00028669,2]
[357593914,1744217440425,-636.13,0.00028676,2]
[357593915,1744217440436,-636.13,0.00028684,2]
[357593916,1744217440446,-636.13,0.00028691,2]
[357593917,1744217440455,-636.13,0.00028699,2]
[357593918,1744217440464,-636.13,0.00028706,2]
[357593919,1744217440474,-636.13,0.00028714,2]
[357593920,1744217440484,-636.13,0.00028722,2]
[357593921,1744217440494,-636.13,0.00028729,2]
[357593922,1744217440503,-636.13,0.00028737,2]
[357593923,1744217440513,-158.14756454,0.00028738,2]
[357593925,1744217440771,-636.13,0.00028744,2]
[357593926,1744217440781,-636.13,0.00028752,2]
[357593927,1744217440790,-636.13,0.00028759,2]
[357593928,1744217440800,-636.13,0.00028767,2]
[357593929,1744217440809,-636.13,0.00028774,2]
[357593930,1744217440818,-160.27,0.00028784,2]
[357593931,1744217440828,-500.0,0.00028814,5]
[357593932,1744217440837,-951.02,0.00028829,2]
[357593933,1744217440847,-500.0,0.00028837,2]
[357593934,1744217440856,-313.63899659,0.00028837,2]
[357593935,1744217440868,-186.36100341,0.00028837,2]
[357593936,1744217440878,-154.14899659,0.00028837,2]
[357593937,1744217440890,-217.80501749,0.00028837,2]
[357593938,1744217440899,-574.0,0.00028838,2]
[357593939,1744217440908,-14.19498251,0.00028838,2]
[357593940,1744217440949,-840.85907597,0.00028838,2]
[357593941,1744217440960,-1188.94594152,0.00028838,2]
[357593942,1744217440970,-759.36696532,0.00028838,2]
[357593950,1744217443279,-526.63303468,0.00028838,2]
[357593951,1744217443291,-1326.0,0.00028838,2]
[357593952,1744217443303,-907.0,0.00028838,2]
[357593953,1744217443313,-1436.0,0.00028838,2]
[357593954,1744217443324,-1278.0,0.00028838,2]
[357593955,1744217443334,-791.0,0.00028838,2]
[357593956,1744217443344,-4143.0,0.00028838,2]
[357593957,1744217443354,-544.0,0.00028838,2]
[357593958,1744217443363,-151.0,0.00028838,2]
[357593959,1744217443372,-3958.0,0.00028838,2]
[357593960,1744217443381,-150.0,0.00028838,2]
[357593961,1744217443392,-1119.0,0.00028838,2]
[357593962,1744217443402,-687.12,0.00028839,2]
[357593963,1744217443411,-2665.23988733,0.00028948,2]
[357593964,1744217443421,-23900.0,0.00028958,2]
[357593965,1744217443431,-150.0,0.0002898,2]
[357593966,1744217443440,-520.34,0.0002899,2]
[357593967,1744217443450,-500.0,0.00029,2]
[357593968,1744217443460,-250.0,0.00029017,2]
[357593969,1744217443471,-166.59905002,0.00029394,5]
[357593970,1744217443481,-257.69,0.00029444,2]
[357593971,1744217443492,-379.34328766,0.0002957,2]
[357593972,1744217443501,-379.34328767,0.00029669,2]
[357593973,1744217443511,-200.0,0.00029682,2]
[357593975,1744217443520,-22675.39806441,0.000297,2]
[357593980,1744217446374,-242.30726565,0.00028694,2]
[357593981,1744217446384,-3775.5128757,0.000297,2]
[357593982,1744217446395,-846.95500164,0.00029731,2]
[357593983,1744217446406,-1254.41603744,0.00029799,2]
[357593985,1744217494073,166.34872739,0.000299,30]
[357593986,1744217494112,159.99123699,0.000299,30]
[357593987,1744217494215,165.72045109,0.000299,30]
[357593989,1744217678155,1000.0,0.0003,30]
[357593990,1744217691460,1000.0,0.0003,30]
[357593991,1744217721109,1000.0,0.0003,30]
[357593992,1744217739805,1000.0,0.0003,30]
[357593993,1744217752748,1000.0,0.0003,30]
[357593994,1744217878504,150.0,0.00031,120]
[357593995,1744217893461,172.69,0.0002898,120]
[357593996,1744217906979,150.0,0.00032,120]
[357593997,1744217989606,162.65,0.00013699,2]
[357593998,1744217990442,150.98148899,0.00013699,2]
[357593999,1744217990468,11.66851101,0.00013699,2]
[357594000,1744217990942,162.65,0.00013699,2]
[357594001,1744217991258,162.65,0.00013699,2]
[357594002,1744217991592,162.65,0.00013699,2]
[357594003,1744217991937,162.65,0.00013699,2]